fUSD/lending_fUSD_20240215
["ID","MTS","AMOUNT","RATE_DAILY","PERIOD"]
[314075266,1707960638201,-1481.63,0.00023031,2]
[314075267,1707960638210,-153.37,0.00023038,2]
[314075268,1707960638220,-1047.62,0.00023082,2]
[314075269,1707960638229,-153.37,0.00023109,2]
[314075270,1707960638238,-1070.32008381,0.00023119,2]
[314075271,1707960638247,-500.0,0.00023133,2]
[314075272,1707960638257,-153.37,0.00023179,2]
[314075273,1707960638266,-948.90172725,0.0002322,2]
[314075274,1707960638275,-2000.0,0.0002323,2]
[314075275,1707960638284,-200.0,0.0002323,2]
[314075276,1707960638293,-531.47,0.00023233,2]
[314075277,1707960638302,-153.37,0.00023249,2]
[314075278,1707960638311,-153.37,0.0002332,2]
[314075279,1707960638320,-153.37,0.0002339,2]
[314075280,1707960638329,-487.11,0.00023413,2]
[314075281,1707960638339,-579.93,0.00023416,2]
[314075282,1707960638350,-2472.87,0.00023416,2]
[314075283,1707960638359,-326.76,0.00023416,2]
[314075284,1707960638369,-2566.85,0.00023416,2]
[314075285,1707960638378,-153.37,0.00023461,2]
[314075286,1707960638388,-2000.0,0.00023462,2]
[314075287,1707960638398,-200.0,0.00023462,2]
[314075288,1707960638407,-754.0,0.00023474,2]
[314075289,1707960638416,-153.37,0.00023531,2]
[314075290,1707960638425,-153.37,0.00023602,2]
[314075291,1707960638434,-153.37,0.00023672,2]
[314075292,1707960638443,-2000.0,0.00023697,2]
[314075293,1707960638452,-200.0,0.00023697,2]
[314075294,1707960638462,-153.37,0.00023742,2]
[314075295,1707960638472,-153.37,0.00023813,2]
[314075296,1707960638480,-179.12,0.00023857,2]
[314075297,1707960638489,-153.37,0.00023883,2]
[314075298,1707960638498,-362.73325483,0.00023934,2]
[314075299,1707960638507,-153.37,0.00023954,2]
[314075300,1707960638516,-203.0,0.00024003,2]
[314075301,1707960638525,-180.0,0.00024005,2]
[314075302,1707960638534,-153.37,0.00024024,2]
[314075303,1707960638542,-153.37,0.00024094,2]
[314075304,1707960638551,-153.37,0.00024165,2]
[314075305,1707960638560,-4477.65,0.00024351,2]
[314075306,1707960638569,-1410.01,0.00024384,2]
[314075307,1707960638578,-3615.24571512,0.00024536,2]
[314075308,1707960638587,-250.0,0.00025075,2]
[314075309,1707960638598,-164.8,0.00025087,2]
[314075310,1707960638607,-863.08945319,0.0002509,2]
[314075311,1707960638616,-10629.56722483,0.0002509,2]
[314075312,1707960638627,-250.0,0.00025107,2]
[314075313,1707960638636,-200.0,0.00025114,2]
[314075314,1707960638647,-210.0,0.00025299,2]
[314075315,1707960638657,-433.96,0.00025318,2]
[314075316,1707960638666,-972.91505205,0.00025369,2]
[314075318,1707960638674,-2705.0,0.00025447,2]
[314075320,1707960638683,-170.08,0.00025535,2]
[314075322,1707960638694,-2253.22,0.00025541,2]
[314075323,1707960638703,-4632.58,0.00025549,2]
[314075325,1707960638712,-203.0,0.00025568,4]
[314075328,1707960638720,-162.99,0.00025585,2]
[314075330,1707960638730,-1852.42,0.00025585,2]
[314075333,1707960638739,-200.0,0.00025585,2]
[314075335,1707960638748,-250.0,0.00025585,2]
[314075337,1707960638758,-10000.0,0.00025585,2]
[314075339,1707960638768,-1057.27,0.00025585,2]
[314075341,1707960638777,-180.0,0.00025649,2]
[314075343,1707960638787,-1057.27,0.00025719,2]
[314075345,1707960638796,-754.0,0.00025738,2]
[314075347,1707960638805,-1057.27,0.00025854,2]
[314075349,1707960638814,-1057.27,0.00025989,2]
[314075351,1707960638823,-4477.65,0.00025995,2]
[314075352,1707960638833,-166.73,0.00026061,2]
[314075353,1707960638842,-150.0,0.00026079,2]
[314075354,1707960638851,-1057.27,0.00026123,2]
[314075355,1707960638860,-3615.24571512,0.00026173,2]
[314075356,1707960638869,-1057.27,0.00026258,2]
[314075357,1707960638878,-10797.56599976,0.000263,2]
[314075358,1707960638887,-1057.27,0.00026393,2]
[314075359,1707960638896,-1057.27,0.00026527,2]
[314075360,1707960638904,-165.86,0.00026606,2]
[314075361,1707960638913,-1000.0,0.00026606,2]
[314075362,1707960638922,-1057.27,0.00026662,2]
[314075363,1707960638931,-445.62,0.00026689,2]
[314075364,1707960638940,-300.0,0.00026762,2]
[314075365,1707960638949,-1057.27,0.00026797,2]
[314075366,1707960638958,-1057.27,0.00026931,2]
[314075367,1707960638968,-166.39,0.00026961,2]
[314075368,1707960638977,-1057.27,0.00027066,2]
[314075369,1707960638989,-203.0,0.00027133,7]
[314075370,1707960638999,-1456.66554983,0.000272,2]
[314075371,1707960639008,-1057.27,0.00027201,2]
[314075372,1707960639017,-180.0,0.00027293,2]
[314075373,1707960639027,-1057.27,0.00027335,2]
[314075374,1707960639036,-155.0,0.00027397,2]
[314075375,1707960639045,-524.82,0.00027397,2]
[314075376,1707960639055,-26955.72,0.00027397,2]
[314075377,1707960639064,-1057.27,0.0002747,2]
[314075378,1707960639073,-26955.72,0.00027556,2]
[314075379,1707960639082,-1057.27,0.00027605,2]
[314075380,1707960639091,-4477.65,0.00027639,2]
[314075381,1707960639101,-26955.72,0.00027714,2]
[314075382,1707960639110,-1057.27,0.00027739,2]
[314075383,1707960639119,-3615.24571512,0.00027809,2]
[314075384,1707960639128,-293.0,0.00027829,2]
[314075385,1707960639137,-26955.72,0.00027872,2]
[314075386,1707960639146,-1057.27,0.00027874,2]
[314075387,1707960639156,-972.91505205,0.00027958,3]
[314075388,1707960639164,-754.0,0.00028002,2]
[314075389,1707960639173,-1057.27,0.00028009,2]
[314075390,1707960639182,-445.62,0.00028024,2]
[314075391,1707960639191,-2886.75,0.00028027,2]
[314075392,1707960639200,-26955.72,0.0002803,2]
[314075393,1707960639209,-300.0,0.00028132,2]
[314075394,1707960639218,-1057.27,0.00028143,2]
[314075395,1707960639227,-26955.72,0.00028189,2]
[314075396,1707960639236,-26955.72,0.00028347,2]
[314075397,1707960639246,-273.78,0.00028488,2]
[314075398,1707960639259,-26955.72,0.00028505,2]
[314075399,1707960639269,-273.78,0.00028638,2]
[314075400,1707960639279,-26955.72,0.00028664,2]
[314075401,1707960639288,-203.0,0.00028698,9]
[314075402,1707960639298,-155.0,0.00028767,2]
[314075403,1707960639307,-273.78,0.00028788,2]
[314075404,1707960639316,-26955.72,0.00028822,2]
[314075405,1707960639325,-180.0,0.00028937,2]
[314075406,1707960639335,-273.78,0.00028938,2]
[314075407,1707960639344,-2886.75,0.00029018,2]
[314075408,1707960639354,-273.78,0.00029088,2]
[314075409,1707960639363,-273.78,0.00029238,2]
[314075410,1707960639374,-4477.65,0.00029283,2]
[314075411,1707960639383,-445.62,0.00029358,2]
[314075412,1707960639392,-273.78,0.00029388,2]
[314075413,1707960639402,-3615.24571512,0.00029445,2]
[314075414,1707960639411,-273.78,0.00029538,2]
[314075415,1707960639420,-273.78,0.00029688,2]
[314075416,1707960639430,-503.52,0.00029808,2]
[314075417,1707960639439,-273.78,0.00029838,2]
[314075418,1707960639449,-200.0,0.0002986,2]
[314075419,1707960639459,-1426.92087624,0.000299,2]
[314075420,1707960639468,-1000.0,0.00029932,2]
[314075421,1707960639478,-800.0,0.00029973,2]
[314075422,1707960639487,-273.78,0.00029988,2]
[314075423,1707960639497,-2445.4839226,0.0003,2]
[314075424,1707960639506,-2972.85727,0.0003,2]
[314075425,1707960639515,-221.0,0.0003,2]
[314075426,1707960639525,-2886.75,0.00030009,2]
[314075427,1707960639692,-7051.36942861,0.0003001,2]
[314075428,1707960639702,-800.0,0.00030082,2]
[314075429,1707960639711,-296.24717762,0.000301,2]
[314075430,1707960639721,-15626.9,0.00030137,2]
[314075431,1707960639731,-157.42,0.00030137,2]
[314075432,1707960639740,-155.0,0.00030137,2]
[314075433,1707960639749,-273.78,0.00030138,2]
[314075434,1707960639760,-203.0,0.00030263,12]
[314075435,1707960639770,-754.0,0.00030266,2]
[314075436,1707960639779,-273.78,0.00030288,2]
[314075437,1707960639788,-166.73,0.00030362,2]
[314075438,1707960639798,-273.78,0.00030438,2]
[314075439,1707960639807,-972.91505205,0.00030546,5]
[314075440,1707960639816,-180.0,0.00030581,2]
[314075441,1707960639826,-273.78,0.00030588,2]
[314075442,1707960639835,-411.0,0.00030612,2]
[314075443,1707960639845,-445.62,0.00030693,2]
[314075444,1707960639857,-273.78,0.00030738,2]
[314075445,1707960639866,-273.78,0.00030888,2]
[314075446,1707960639875,-4477.65,0.00030927,2]
[314075447,1707960639885,-2886.75,0.00031,2]
[314075448,1707960639894,-273.78,0.00031037,2]
[314075449,1707960639903,-3615.24571512,0.00031082,2]
[314075450,1707960639913,-273.78,0.00031187,2]
[314075451,1707960639922,-273.78,0.00031337,2]
[314075452,1707960639931,-155.0,0.00031507,2]
[314075453,1707960639941,-180.0,0.00031644,2]
[314075454,1707960639950,-168.77,0.00031644,2]
[314075455,1707960639959,-203.0,0.00031828,14]
[314075456,1707960639969,-2886.75,0.00031992,2]
[314075457,1707960639978,-229.82442759,0.00032,2]
[314075458,1707960639987,-229.82442759,0.00032,2]
[314075459,1707960639997,-229.82442759,0.00032,2]
[314075460,1707960640006,-229.82442759,0.00032,2]
[314075461,1707960640015,-229.82442759,0.00032,2]
[314075462,1707960640025,-229.82442759,0.00032,2]
[314075463,1707960640034,-229.82442759,0.00032,2]
[314075464,1707960640044,-229.82442759,0.00032,2]
[314075465,1707960640054,-229.82442759,0.00032,2]
[314075466,1707960640064,-229.82442759,0.00032,2]
[314075467,1707960640073,-229.82442759,0.00032,2]
[314075468,1707960640083,-229.82442759,0.00032,2]
[314075469,1707960640092,-229.82442759,0.00032,2]
[314075470,1707960640104,-229.82442759,0.00032,2]
[314075471,1707960640113,-229.82442759,0.00032,2]
[314075472,1707960640122,-229.82442759,0.00032,2]
[314075473,1707960640131,-229.82442759,0.00032,2]
[314075474,1707960640140,-229.82442759,0.00032,2]
[314075475,1707960640149,-229.82442759,0.00032,2]
[314075476,1707960640158,-229.82442759,0.00032,2]
[314075477,1707960640167,-229.82442759,0.00032,2]
[314075478,1707960640176,-229.82442759,0.00032,2]
[314075479,1707960640185,-229.82442759,0.00032,2]
[314075480,1707960640194,-229.82442759,0.00032,2]
[314075481,1707960640203,-229.82442759,0.00032,2]
[314075482,1707960640212,-229.82442759,0.00032,2]
[314075483,1707960640221,-229.82442759,0.00032,2]
[314075484,1707960640230,-229.82442759,0.00032,2]
[314075485,1707960640239,-229.82442759,0.00032,2]
[314075486,1707960640249,-229.82442759,0.00032,2]
[314075487,1707960640258,-445.62,0.00032027,2]
[314075488,1707960640267,-180.0,0.00032225,2]
[314075489,1707960640276,-754.0,0.0003253,2]
[314075490,1707960640285,-4477.65,0.0003257,2]
[314075491,1707960640294,-17465.98119568,0.00032609,7]
[314075492,1707960640314,-19238.71276012,0.00032609,7]
[314075493,1707960640324,-58147.7716699,0.00032609,7]
[314075494,1707960640334,-26658.06397412,0.00032609,7]
[314075495,1707960640343,-1332.90319871,0.00032609,7]
[314075496,1707960640354,-21074.6501548,0.00032609,7]
[314075497,1707960640364,-3615.24571512,0.00032718,4]
[314075498,1707960640374,-905.41503826,0.000328,2]
[314075499,1707960640384,-150.1,0.000328,2]
[314075500,1707960640393,-151.52,0.00032877,2]
[314075501,1707960640403,-1250.0,0.000329,2]
[314075502,1707960640413,-1244.75430601,0.000329,2]
[314075503,1707960640422,-2886.75,0.00032983,2]
[314075504,1707960640433,-7537.52224686,0.00033,2]
[314075505,1707960640443,-1636.44728806,0.00033,15]
[314075506,1707960640453,-221.0,0.00033,2]
[314075507,1707960640463,-972.91505205,0.00033135,6]
[314075508,1707960640473,-1000.0,0.00033258,2]
[314075509,1707960640482,-203.0,0.00033394,17]
[314075510,1707960640492,-154.31,0.000335,2]
[314075511,1707960640502,-154.31,0.000335,2]
[314075512,1707960640511,-154.31,0.000335,2]
[314075513,1707960640521,-154.31,0.000335,2]
[314075514,1707960640531,-154.31,0.000335,2]
[314075515,1707960640541,-154.31,0.000335,2]
[314075516,1707960640550,-154.31,0.000335,2]
[314075517,1707960640560,-154.31,0.000335,2]
[314075518,1707960640571,-180.0,0.00033868,2]
[314075519,1707960640581,-152.86980425,0.000339,2]
[314075520,1707960640590,-152.86980421,0.000339,2]
[314075521,1707960640600,-152.86980421,0.000339,2]
[314075522,1707960640610,-2886.75,0.00033974,2]
[314075523,1707960640619,-3615.24571512,0.00034355,6]
[314075524,1707960640629,-370.604625,0.000345,2]
[314075525,1707960640638,-199.4117444,0.00034726,3]
[314075526,1707960640650,-894.15620419,0.00034726,3]
[314075527,1707960640660,-212.566808,0.00034746,3]
[314075528,1707960640669,-10008.24752007,0.0003479,2]
[314075529,1707960640680,-10008.24752007,0.0003479,2]
[314075530,1707960640690,-10008.24752007,0.0003479,2]
[314075531,1707960640699,-754.0,0.00034793,2]
[314075532,1707960640708,-1363.84185139,0.00034799,2]
[314075533,1707960640718,-1363.84185138,0.00034799,2]
[314075534,1707960640728,-1363.84185138,0.00034799,2]
[314075535,1707960640737,-1363.84185138,0.00034799,2]
[314075536,1707960640746,-1363.84185138,0.00034799,2]
[314075537,1707960640756,-1363.84185138,0.00034799,2]
[314075538,1707960640765,-555.906938,0.000348,2]
[314075539,1707960640774,-1190.46038411,0.000349,2]
[314075540,1707960640785,-1190.460384,0.000349,2]
[314075541,1707960640794,-1190.460384,0.000349,2]
[314075542,1707960640804,-1190.460384,0.000349,2]
[314075543,1707960640813,-1190.460384,0.000349,2]
[314075544,1707960640823,-1190.460384,0.000349,2]
[314075545,1707960640832,-1190.460384,0.000349,2]
[314075546,1707960640841,-1190.460384,0.000349,2]
[314075547,1707960640851,-203.0,0.00034959,19]
[314075548,1707960640860,-741.209251,0.00035,2]
[314075549,1707960640870,-181.60974369,0.00035,2]
[314075550,1707960640879,-2972.85728,0.00035,2]
[314075551,1707960640889,-2862.58575776,0.00035,2]
[314075552,1707960640898,-14730.81377294,0.0003509,2]
[314075553,1707960640908,-3006.0,0.000354,3]
[314075554,1707960640917,-18178.0,0.000354,3]
[314075555,1707960640926,-433.96,0.00035445,2]
[314075556,1707960640936,-2579.85,0.00035499,2]
[314075557,1707960640946,-3153.15,0.00035499,2]
[314075558,1707960640955,-33288.60610413,0.000355,2]
[314075559,1707960640965,-180.0,0.00035512,2]
[314075560,1707960640974,-16855.6842,0.00035516,2]
[314075561,1707960640984,-555.6504,0.00035516,3]
[314075562,1707960640994,-1190.460384,0.00035532,2]
[314075563,1707960641006,-926.511564,0.000356,2]
[314075564,1707960641016,-1000.0,0.000356,2]
[314075565,1707960641025,-154.31,0.000356,3]
[314075566,1707960641035,-154.31,0.000356,3]
[314075567,1707960641044,-154.31,0.000356,3]
[314075568,1707960641054,-154.31,0.000356,3]
[314075569,1707960641063,-154.31,0.000356,3]
[314075570,1707960641073,-154.31,0.000356,3]
[314075571,1707960641082,-154.31,0.000356,3]
[314075572,1707960641092,-154.31,0.000356,3]
[314075573,1707960641102,-167.00883455,0.00035613,2]
[314075574,1707960641112,-1183546.09700783,0.00035616,3]
[314075575,1707960641122,-500.0,0.00035616,7]
[314075576,1707960641133,-500.0,0.00035616,7]
[314075577,1707960641142,-528.92719889,0.00035616,7]
[314075578,1707960641152,-500.0,0.00035616,7]
[314075579,1707960641163,-491.39275006,0.00035616,7]
[314075580,1707960641173,-402.94010617,0.00035616,7]
[314075581,1707960641184,-506.94707941,0.00035616,7]
[314075582,1707960641193,-408.81109882,0.00035616,7]
[314075583,1707960641204,-503.38713752,0.00035616,7]
[314075584,1707960641213,-503.07215791,0.00035616,7]
[314075585,1707960641223,-519.0954282,0.00035616,7]
[314075586,1707960641233,-500.0,0.00035616,7]
[314075587,1707960641242,-500.0,0.00035616,7]
[314075588,1707960641251,-500.0,0.00035616,7]
[314075589,1707960641261,-500.0,0.00035616,7]
[314075590,1707960641271,-500.0,0.00035616,7]
[314075591,1707960641282,-500.0,0.00035616,7]
[314075592,1707960641292,-646.35681455,0.00035616,7]
[314075593,1707960641301,-500.0,0.00035616,7]
[314075594,1707960641311,-500.0,0.00035616,7]
[314075595,1707960641321,-500.0,0.00035616,7]
[314075596,1707960641330,-500.0,0.00035616,7]
[314075597,1707960641339,-500.0,0.00035616,7]
[314075598,1707960641349,-500.0,0.00035616,7]
[314075599,1707960641358,-500.0,0.00035616,7]
[314075600,1707960641367,-500.0,0.00035616,7]
[314075601,1707960641377,-500.0,0.00035616,7]
[314075602,1707960641387,-500.0,0.00035616,7]
[314075603,1707960641396,-528.28447462,0.00035616,7]
[314075604,1707960641405,-400.86859948,0.00035616,7]
[314075605,1707960641414,-500.0,0.00035616,7]
[314075606,1707960641423,-500.0,0.00035616,7]
[314075607,1707960641433,-500.0,0.00035616,7]
[314075608,1707960641442,-500.0,0.00035616,7]
[314075609,1707960641451,-500.0,0.00035616,7]
[314075610,1707960641460,-507.87441487,0.00035616,7]
[314075611,1707960641469,-500.0,0.00035616,7]
[314075612,1707960641479,-553.23468285,0.00035616,7]
[314075613,1707960641488,-500.0,0.00035616,7]
[314075614,1707960641497,-500.0,0.00035616,7]
[314075615,1707960641507,-500.0,0.00035616,7]
[314075616,1707960641516,-500.0,0.00035616,7]
[314075617,1707960641526,-500.0,0.00035616,7]
[314075618,1707960641538,-500.0,0.00035616,7]
[314075619,1707960641547,-500.0,0.00035616,7]
[314075620,1707960641557,-500.0,0.00035616,7]
[314075621,1707960641566,-500.0,0.00035616,7]
[314075622,1707960641576,-500.0,0.00035616,7]
[314075623,1707960641585,-500.0,0.00035616,7]
[314075624,1707960641595,-500.0,0.00035616,7]
[314075625,1707960641607,-500.0,0.00035616,7]
[314075626,1707960641616,-500.0,0.00035616,7]
[314075627,1707960641626,-500.0,0.00035616,2]
[314075628,1707960641635,-511.58478965,0.00035616,7]
[314075629,1707960641646,-500.0,0.00035616,7]
[314075630,1707960641656,-189.10399249,0.00035616,7]
[314075631,1707960641666,-511.46170133,0.00035616,7]
[314075632,1707960641676,-500.0,0.00035616,7]
[314075633,1707960641689,-500.0,0.00035616,7]
[314075634,1707960641698,-500.0,0.00035616,7]
[314075635,1707960641708,-500.0,0.00035616,7]
[314075636,1707960641718,-434.53436059,0.00035616,7]
[314075637,1707960641727,-500.0,0.00035616,7]
[314075638,1707960641737,-500.0,0.00035616,7]
[314075639,1707960641746,-500.0,0.00035616,7]
[314075640,1707960641757,-516.77054475,0.00035616,7]
[314075641,1707960641767,-500.0,0.00035616,7]
[314075642,1707960641778,-500.0,0.00035616,7]
[314075643,1707960641788,-500.0,0.00035616,7]
[314075644,1707960641798,-500.0,0.00035616,7]
[314075645,1707960641807,-500.0,0.00035616,7]
[314075646,1707960641817,-500.0,0.00035616,7]
[314075647,1707960641827,-500.0,0.00035616,7]
[314075648,1707960641837,-500.0,0.00035616,7]
[314075649,1707960641847,-500.0,0.00035616,7]
[314075650,1707960641857,-500.0,0.00035616,7]
[314075651,1707960641868,-538.60150102,0.00035616,7]
[314075652,1707960641877,-500.0,0.00035616,7]
[314075653,1707960641886,-500.0,0.00035616,7]
[314075654,1707960641896,-500.0,0.00035616,7]
[314075655,1707960641906,-495.0,0.00035616,7]
[314075656,1707960641915,-500.0,0.00035616,7]
[314075657,1707960641925,-500.0,0.00035616,7]
[314075658,1707960641934,-500.0,0.00035616,7]
[314075659,1707960641943,-500.0,0.00035616,7]
[314075660,1707960641953,-500.0,0.00035616,7]
[314075661,1707960641962,-500.0,0.00035616,7]
[314075662,1707960641971,-500.0,0.00035616,7]
[314075663,1707960641980,-500.0,0.00035616,7]
[314075664,1707960641990,-500.0,0.00035616,7]
[314075665,1707960641999,-500.0,0.00035616,7]
[314075666,1707960642009,-500.0,0.00035616,7]
[314075667,1707960642019,-500.0,0.00035616,7]
[314075668,1707960642029,-500.0,0.00035616,7]
[314075669,1707960642038,-506.76491186,0.00035616,7]
[314075670,1707960642048,-500.0,0.00035616,7]
[314075671,1707960642058,-500.0,0.00035616,7]
[314075672,1707960642067,-500.0,0.00035616,7]
[314075673,1707960642077,-500.0,0.00035616,7]
[314075674,1707960642089,-500.0,0.00035616,7]
[314075675,1707960642101,-500.0,0.00035616,7]
[314075676,1707960642111,-500.0,0.00035616,7]
[314075677,1707960642121,-500.0,0.00035616,7]
[314075678,1707960642130,-500.0,0.00035616,7]
[314075679,1707960642140,-500.0,0.00035616,7]
[314075680,1707960642149,-500.0,0.00035616,7]
[314075681,1707960642159,-500.0,0.00035616,7]
[314075682,1707960642168,-500.0,0.00035616,7]
[314075683,1707960642178,-500.0,0.00035616,7]
[314075685,1707960642188,-500.0,0.00035616,7]
[314075686,1707960642197,-500.0,0.00035616,7]
[314075687,1707960642206,-500.0,0.00035616,7]
[314075688,1707960642216,-531.33491749,0.00035616,7]
[314075689,1707960642225,-500.0,0.00035616,7]
[314075690,1707960642235,-500.0,0.00035616,7]
[314075691,1707960642244,-500.0,0.00035616,7]
[314075692,1707960642254,-500.0,0.00035616,7]
[314075693,1707960642264,-500.0,0.00035616,7]
[314075694,1707960642416,-500.0,0.00035616,7]
[314075695,1707960642425,-500.0,0.00035616,7]
[314075696,1707960642434,-500.0,0.00035616,7]
[314075697,1707960642444,-500.0,0.00035616,7]
[314075698,1707960642453,-500.0,0.00035616,7]
[314075699,1707960642463,-500.0,0.00035616,7]
[314075700,1707960642472,-500.0,0.00035616,7]
[314075701,1707960642481,-500.0,0.00035616,7]
[314075702,1707960642490,-500.0,0.00035616,7]
[314075703,1707960642500,-215.11935313,0.00035616,7]
[314075704,1707960642508,-500.0,0.00035616,7]
[314075705,1707960642518,-500.0,0.00035616,7]
[314075706,1707960642527,-500.0,0.00035616,7]
[314075707,1707960642536,-301.99328449,0.00035616,10]
[314075708,1707960642546,-500.0,0.00035616,7]
[314075709,1707960642555,-500.0,0.00035616,7]
[314075710,1707960642565,-500.0,0.00035616,7]
[314075711,1707960642575,-622.92545585,0.00035616,7]
[314075712,1707960642584,-500.0,0.00035616,7]
[314075713,1707960642593,-500.0,0.00035616,7]
[314075714,1707960642605,-510.31941381,0.00035616,7]
[314075715,1707960642614,-500.0,0.00035616,7]
[314075716,1707960642623,-500.0,0.00035616,7]
[314075717,1707960642633,-500.0,0.00035616,7]
[314075718,1707960642642,-500.0,0.00035616,7]
[314075719,1707960642654,-500.0,0.00035616,7]
[314075720,1707960642663,-500.0,0.00035616,7]
[314075721,1707960642672,-500.0,0.00035616,7]
[314075722,1707960642683,-500.0,0.00035616,7]
[314075723,1707960642692,-500.0,0.00035616,7]
[314075724,1707960642701,-500.0,0.00035616,7]
[314075725,1707960642712,-500.0,0.00035616,7]
[314075726,1707960642722,-500.0,0.00035616,7]
[314075727,1707960642732,-500.0,0.00035616,7]
[314075728,1707960642742,-500.0,0.00035616,7]
[314075729,1707960642751,-500.0,0.00035616,7]
[314075730,1707960642762,-500.0,0.00035616,7]
[314075731,1707960642772,-500.0,0.00035616,7]
[314075732,1707960642782,-500.0,0.00035616,7]
[314075733,1707960642791,-500.0,0.00035616,7]
[314075734,1707960642801,-500.0,0.00035616,7]
[314075735,1707960642810,-500.0,0.00035616,7]
[314075736,1707960642820,-500.0,0.00035616,7]
[314075737,1707960642830,-500.0,0.00035616,7]
[314075738,1707960642839,-500.0,0.00035616,7]
[314075739,1707960642849,-500.0,0.00035616,7]
[314075740,1707960642858,-500.0,0.00035616,7]
[314075741,1707960642868,-500.0,0.00035616,7]
[314075742,1707960642877,-500.0,0.00035616,7]
[314075743,1707960642886,-500.0,0.00035616,7]
[314075744,1707960642896,-500.0,0.00035616,7]
[314075745,1707960642906,-610.20846888,0.00035616,7]
[314075746,1707960642915,-500.0,0.00035616,7]
[314075747,1707960642924,-500.0,0.00035616,7]
[314075748,1707960642933,-500.0,0.00035616,7]
[314075749,1707960642942,-500.0,0.00035616,7]
[314075750,1707960642952,-500.0,0.00035616,7]
[314075751,1707960642962,-500.0,0.00035616,7]
[314075752,1707960642971,-500.0,0.00035616,7]
[314075753,1707960642980,-500.0,0.00035616,7]
[314075754,1707960642991,-500.0,0.00035616,7]
[314075755,1707960643000,-500.0,0.00035616,7]
[314075756,1707960643010,-500.0,0.00035616,7]
[314075757,1707960643020,-500.0,0.00035616,7]
[314075758,1707960643029,-614.29934485,0.00035616,7]
[314075759,1707960643038,-500.0,0.00035616,7]
[314075760,1707960643047,-500.0,0.00035616,7]
[314075761,1707960643056,-500.0,0.00035616,7]
[314075762,1707960643066,-500.0,0.00035616,7]
[314075763,1707960643076,-500.0,0.00035616,7]
[314075764,1707960643085,-500.0,0.00035616,7]
[314075765,1707960643095,-500.0,0.00035616,7]
[314075766,1707960643106,-500.0,0.00035616,7]
[314075768,1707960643115,-500.0,0.00035616,7]
[314075770,1707960643125,-500.0,0.00035616,7]
[314075772,1707960643134,-500.0,0.00035616,7]
[314075774,1707960643144,-150.0,0.00035616,7]
[314075776,1707960643153,-630.0761526,0.00035616,7]
[314075778,1707960643162,-500.0,0.00035616,7]
[314075780,1707960643171,-193.910105,0.00035616,7]
[314075781,1707960643180,-500.0,0.00035616,7]
[314075782,1707960643190,-500.0,0.00035616,7]
[314075783,1707960643198,-3113.93730816,0.00035616,7]
[314075784,1707960643207,-500.0,0.00035616,7]
[314075785,1707960643217,-500.0,0.00035616,7]
[314075786,1707960643226,-500.0,0.00035616,7]
[314075787,1707960643235,-500.0,0.00035616,7]
[314075788,1707960643244,-500.0,0.00035616,7]
[314075789,1707960643253,-500.0,0.00035616,7]
[314075790,1707960643262,-172.25153523,0.00035616,7]
[314075791,1707960643272,-500.0,0.00035616,7]